bitfinex-derivatives/quotes_BTCF0:USTF0_20250127
["timestamp","ask_amount","ask_price","bid_price","bid_amount"]
[1738002039289,0.1393,99638.0,99616.0,0.200852]
[1738002039591,0.200818,99633.0,99613.0,0.3608]
[1738002039801,0.11934647,99624.0,99613.0,0.3608]
[1738002039998,0.11934647,99624.0,99614.0,0.200857]
[1738002040201,0.11934647,99624.0,99618.0,0.200849]
[1738002040402,0.11934647,99624.0,99623.0,0.200839]
[1738002040602,0.17901971,99637.0,99623.0,0.13056]
[1738002040801,0.17535278,99637.0,99636.0,0.200812]
[1738002041102,0.10938626,99637.0,99636.0,1.700812]
[1738002041301,0.00150587,99657.0,99652.0,0.20078]
[1738002042195,0.00015054,99662.0,99652.0,0.20078]
[1738002042695,0.00015054,99662.0,99652.0,0.23656255]
[1738002043095,0.00015054,99662.0,99660.0,0.200752]
[1738002043501,0.00015054,99662.0,99660.0,0.561552]
[1738002044405,0.00015054,99662.0,99660.0,0.562552]
[1738002044406,0.00915054,99662.0,99660.0,0.562552]
[1738002044795,0.01315054,99662.0,99660.0,0.562552]
[1738002045091,0.01315054,99662.0,99660.0,0.3618]
[1738002045491,0.01315054,99662.0,99660.0,0.001]
[1738002049906,0.21390054,99662.0,99660.0,0.001]
[1738002050105,0.00715054,99662.0,99646.0,0.49496]
[1738002050302,0.3608,99656.0,99646.0,0.49496]
[1738002050501,0.2657,99655.0,99646.0,0.49496]
[1738002051010,0.2657,99655.0,99646.0,0.53100505]
[1738002052411,0.2657,99655.0,99646.0,0.53200505]
[1738002052613,0.2657,99655.0,99646.0,0.53300505]
[1738002055211,0.3608,99647.0,99646.0,0.002]
[1738002055422,0.200817,99629.0,99612.0,0.1322]
[1738002055623,0.922417,99629.0,99609.0,0.4948]
[1738002055803,0.200855,99610.0,99609.0,0.4948]
[1738002056116,0.3608,99610.0,99609.0,0.4948]
[1738002056501,0.200845,99615.0,99609.0,0.4948]
[1738002056833,0.3608,99618.0,99609.0,0.4948]
[1738002057017,0.00015054,99619.0,99613.0,0.3608]
[1738002057208,0.00015054,99619.0,99618.0,0.200839]
[1738002057808,0.00015054,99619.0,99618.0,1.700839]
[1738002058010,0.00015054,99619.0,99618.0,1.5]
[1738002058506,0.00015054,99619.0,99618.0,1.502]
[1738002059309,0.00015054,99619.0,99618.0,1.53858603]
[1738002060014,0.00015054,99619.0,99618.0,1.54158603]
[1738002060218,0.00015054,99619.0,99618.0,1.54058603]
[1738002060611,0.20098754,99619.0,99618.0,0.04058603]
[1738002060808,0.20098754,99619.0,99618.0,0.004]
[1738002061016,0.20098754,99619.0,99618.0,0.003]
[1738002061211,0.00015054,99619.0,99618.0,0.005]
[1738002061921,0.20098754,99619.0,99618.0,0.004]
[1738002062117,0.00015054,99619.0,99618.0,0.004]
[1738002063518,0.20098754,99619.0,99618.0,0.004]
[1738002064018,0.00015054,99619.0,99618.0,0.004]
[1738002064409,0.30015054,99619.0,99600.0,0.00015054]
[1738002064621,0.3608,99601.0,99600.0,0.00015054]
[1738002066623,0.1312,99609.0,99600.0,0.36595054]
[1738002066824,0.3608,99628.0,99600.0,0.36595054]
[1738002067026,0.145298,99620.0,99600.0,0.00515054]
[1738002067212,0.3608,99613.0,99600.0,0.00215054]
[1738002067413,0.001,99601.0,99600.0,0.00115054]
[1738002067811,0.001,99601.0,99600.0,0.03204923]
[1738002068015,0.3608,99627.0,99600.0,0.03204923]
[1738002068215,0.3608,99627.0,99611.0,0.3608]
[1738002068420,0.3608,99627.0,99612.0,1.5]
[1738002068628,0.3608,99613.0,99600.0,0.03204923]
[1738002068922,0.3608,99604.0,99600.0,0.03204923]
[1738002069414,0.3608,99611.0,99600.0,0.03304923]
[1738002069920,0.1416,99610.0,99600.0,0.03604923]
[1738002070425,0.3608,99601.0,99600.0,0.00515054]
[1738002070809,0.200877,99600.0,99586.0,0.17937544]
[1738002071015,0.3608,99590.0,99586.0,0.21067214]
[1738002071313,0.200884,99596.0,99586.0,0.21067214]
[1738002071513,0.4972,99601.0,99586.0,0.21067214]
[1738002071719,0.1388,99609.0,99590.0,0.3608]
[1738002072027,0.00015061,99609.0,99600.0,0.003]
[1738002072629,0.00015061,99609.0,99601.0,0.3608]
[1738002072930,0.00015061,99609.0,99607.0,0.200861]
[1738002074030,0.3608,99632.0,99620.0,0.200835]
[1738002074233,0.3608,99632.0,99620.0,0.561635]
[1738002074413,0.3608,99632.0,99620.0,0.3608]
[1738002074619,0.200816,99630.0,99612.0,0.3608]
[1738002074820,0.561641,99618.0,99609.0,0.13048]
[1738002075025,0.561641,99618.0,99608.0,0.1408]
[1738002075026,0.3608,99618.0,99607.0,0.001]
[1738002075420,0.3608,99618.0,99609.0,0.200858]
[1738002075621,0.00015061,99623.0,99615.0,0.200845]
[1738002075834,0.00015061,99623.0,99620.0,0.3608]
[1738002076031,0.00015061,99623.0,99620.0,0.3628]
[1738002076229,0.00015061,99623.0,99620.0,0.563636]
[1738002076434,0.00015061,99623.0,99620.0,0.3628]
[1738002076836,0.00015061,99623.0,99616.0,0.4104]
[1738002077428,0.00015061,99623.0,99619.0,0.200837]
[1738002077731,0.00015061,99623.0,99616.0,0.4104]
[1738002077933,0.00015061,99623.0,99618.0,0.200838]
[1738002078138,0.00015061,99623.0,99620.0,0.200835]
[1738002078337,0.00015061,99623.0,99616.0,0.44257025]
[1738002079225,0.3608,99618.0,99616.0,0.003]
[1738002080025,0.3608,99618.0,99616.0,0.004]
[1738002080228,0.200841,99617.0,99616.0,0.004]
[1738002080429,0.3608,99618.0,99616.0,0.004]
[1738002080639,0.3608,99618.0,99616.0,0.003]
[1738002082041,0.3608,99618.0,99616.0,0.002]
[1738002082541,0.3608,99618.0,99616.0,0.003]
[1738002082745,0.200841,99617.0,99616.0,0.003]
[1738002083427,0.200841,99617.0,99616.0,0.001]
[1738002083936,0.500841,99617.0,99616.0,0.001]
[1738002084130,0.200866,99605.0,99604.0,0.00015061]
[1738002084434,0.561666,99605.0,99604.0,0.00015061]
[1738002085744,0.566666,99605.0,99604.0,0.00115061]
[1738002086134,0.566666,99605.0,99590.0,0.03138143]
[1738002086135,0.200894,99591.0,99590.0,0.03138143]
[1738002086336,0.561694,99591.0,99581.0,0.17937544]
[1738002086540,0.3608,99591.0,99581.0,0.17937544]
[1738002086732,0.3608,99591.0,99590.0,0.200896]
[1738002087947,0.3608,99591.0,99585.0,1.5]
[1738002088447,0.00015061,99600.0,99585.0,1.5]
[1738002089145,0.00015061,99600.0,99590.0,0.3608]
[1738002090738,0.00015061,99600.0,99585.0,1.5024]
[1738002090939,0.00015061,99600.0,99585.0,1.5]
[1738002091241,0.00115061,99600.0,99585.0,1.5]
[1738002091741,0.00115061,99600.0,99590.0,0.3608]
[1738002092041,0.00015061,99600.0,99590.0,0.3608]
[1738002092243,0.00015061,99600.0,99591.0,0.1279]
[1738002093345,0.3608,99594.0,99591.0,0.1279]
[1738002093638,0.00015061,99600.0,99591.0,0.1279]
[1738002094535,0.001,99594.0,99591.0,0.1279]
[1738002094936,0.00015061,99600.0,99591.0,0.1279]
[1738002095132,0.00015061,99600.0,99597.0,0.3608]
[1738002095441,0.36095061,99600.0,99591.0,0.1299]
[1738002095646,0.200882,99597.0,99591.0,0.1299]
[1738002095851,0.561692,99592.0,99574.0,0.23953635]
[1738002096138,0.3608,99582.0,99574.0,0.23953635]
[1738002096538,0.561712,99582.0,99574.0,0.23953635]
[1738002097141,0.3608,99582.0,99581.0,0.24068696]
[1738002097445,0.561712,99582.0,99581.0,0.24368696]
[1738002098648,0.561712,99582.0,99581.0,0.24268696]
[1738002098838,0.561712,99582.0,99581.0,0.24368696]
[1738002099239,0.58796053,99582.0,99581.0,0.24368696]
[1738002099639,0.200932,99572.0,99571.0,0.29936331]
[1738002099840,0.561732,99572.0,99571.0,0.29936331]
[1738002101857,0.561732,99572.0,99571.0,0.30036331]
[1738002102534,0.561732,99572.0,99571.0,0.29936331]
[1738002102740,0.200942,99567.0,99564.0,0.003]
[1738002103046,0.200945,99566.0,99564.0,0.003]
[1738002103248,0.3608,99567.0,99564.0,0.003]
[1738002103556,0.561746,99565.0,99564.0,0.003]
[1738002104053,0.3608,99565.0,99541.0,0.32343472]
[1738002104351,0.561777,99550.0,99541.0,0.32343472]
[1738002104648,0.561777,99550.0,99541.0,0.18143472]
[1738002105646,0.561777,99550.0,99549.0,0.004]
[1738002106239,0.58856936,99550.0,99549.0,0.004]
[1738002106540,0.561777,99550.0,99549.0,0.004]
[1738002107543,0.3608,99550.0,99549.0,0.004]
[1738002107854,0.02716363,99560.0,99549.0,0.004]
[1738002108051,0.200971,99553.0,99549.0,0.004]
[1738002108953,0.200974,99552.0,99549.0,0.004]
[1738002109150,0.200977,99551.0,99549.0,0.004]
[1738002111345,0.3608,99555.0,99540.0,0.00015061]
[1738002111657,0.561794,99541.0,99540.0,0.00015061]
[1738002113047,0.58866076,99541.0,99540.0,0.00015061]
[1738002114047,0.58866076,99541.0,99540.0,0.00115061]
[1738002114853,0.38766676,99541.0,99540.0,0.00115061]
[1738002116250,0.02686676,99541.0,99540.0,0.00115061]
[1738002116456,0.00015069,99550.0,99540.0,0.00115061]
[1738002116755,0.003,99541.0,99540.0,0.00115061]
[1738002116954,0.203994,99541.0,99540.0,0.00115061]
[1738002117861,0.050249,99540.0,99480.0,0.45776267]
[1738002118047,0.201063,99507.0,99506.0,0.1254]
[1738002120062,0.3608,99510.0,99506.0,0.1254]
[1738002120747,0.201054,99512.0,99506.0,0.1264]
[1738002120947,0.36095069,99516.0,99506.0,0.1264]
[1738002121354,0.201051,99513.0,99506.0,0.1264]
[1738002121756,0.36095069,99516.0,99506.0,0.001]
[1738002121962,0.201063,99507.0,99506.0,0.001]
[1738002122265,0.00015069,99516.0,99506.0,0.001]
[1738002122456,0.00015069,99516.0,99512.0,0.3608]
[1738002122647,0.00015069,99516.0,99513.0,0.2588]
[1738002123055,0.3608,99515.0,99513.0,0.2588]
[1738002123252,0.201049,99514.0,99513.0,0.2588]
[1738002124361,0.3608,99515.0,99513.0,0.2588]
[1738002124554,0.00015069,99516.0,99513.0,0.2588]
[1738002124755,0.3608,99527.0,99514.0,1.5]
[1738002125059,0.3608,99527.0,99517.0,0.14551632]
[1738002125947,0.3608,99527.0,99514.0,0.0014]
[1738002126162,0.3608,99527.0,99513.0,0.2588]
[1738002126961,0.003,99514.0,99513.0,0.2588]
[1738002127550,0.201049,99514.0,99513.0,0.2588]
[1738002128052,0.201049,99514.0,99513.0,0.1332]
[1738002128360,0.201049,99514.0,99513.0,0.001]
[1738002129348,0.201051,99513.0,99512.0,0.00015069]
[1738002129548,0.561851,99513.0,99512.0,0.00015069]
[1738002129752,0.201067,99505.0,99500.0,0.1]
[1738002129954,0.561867,99505.0,99500.0,0.1]
[1738002130863,0.3608,99505.0,99500.0,0.1]
[1738002131358,0.004,99505.0,99504.0,0.204069]
[1738002131565,0.002,99514.0,99504.0,1.503]
[1738002131754,0.201029,99524.0,99510.0,0.201057]
[1738002131949,0.14879447,99517.0,99513.0,0.201051]
[1738002132254,0.201045,99516.0,99514.0,0.262]
[1738002132454,0.201047,99515.0,99514.0,0.262]
[1738002133154,0.201065,99506.0,99504.0,0.003]
[1738002133362,0.561867,99505.0,99504.0,0.003]
[1738002134669,0.561867,99505.0,99474.0,0.003]
[1738002134670,0.3608,99505.0,99474.0,0.003]
[1738002134857,0.201128,99475.0,99474.0,0.003]
[1738002135963,0.201128,99475.0,99474.0,0.004]
[1738002136880,0.3608,99475.0,99459.0,0.30380331]
[1738002137167,0.561958,99460.0,99459.0,0.30236331]
[1738002138272,0.561958,99460.0,99459.0,0.30536331]
[1738002139562,0.561958,99460.0,99459.0,0.006]
[1738002139762,0.561958,99460.0,99459.0,0.003]
[1738002141467,0.201158,99460.0,99459.0,1.503]
[1738002141672,0.201147,99466.0,99459.0,1.503]
[1738002141967,0.201155,99462.0,99459.0,1.503]
[1738002142174,0.201155,99462.0,99460.0,0.3608]
[1738002142470,0.201157,99461.0,99459.0,1.5044]
[1738002142672,0.201157,99461.0,99459.0,1.503]
[1738002143656,0.201157,99461.0,99459.0,0.003]
[1738002143860,0.201153,99463.0,99459.0,0.003]
[1738002144057,0.201151,99464.0,99459.0,0.003]
[1738002144272,0.201151,99464.0,99459.0,0.006]
[1738002144469,0.234781,99470.0,99459.0,0.006]
[1738002144672,0.201156,99462.0,99459.0,0.006]
[1738002145060,0.08926468,99470.0,99459.0,0.006]
[1738002145261,0.08926468,99470.0,99469.0,0.3608]
[1738002145660,0.1192945,99477.0,99469.0,0.3608]
[1738002145864,0.1192945,99477.0,99469.0,0.7216]
[1738002146373,0.1192945,99477.0,99470.0,1.5]
[1738002146672,0.00015077,99477.0,99470.0,1.5]
[1738002147172,0.00015077,99477.0,99470.0,1.701135]
[1738002147572,0.00015077,99477.0,99471.0,0.201134]
[1738002147875,0.00015077,99477.0,99470.0,1.5014]
[1738002148075,0.00015077,99477.0,99470.0,1.5]
[1738002148878,0.00015077,99477.0,99476.0,0.201124]
[1738002150274,0.00015077,99477.0,99476.0,0.001]
[1738002150773,0.00150846,99495.0,99476.0,0.001]
[1738002150980,0.00150846,99495.0,99488.0,0.3608]
[1738002151165,0.00150846,99495.0,99494.0,0.201087]
[1738002151369,0.17849143,99522.0,99507.0,0.201061]
[1738002151676,0.17849143,99522.0,99521.0,0.201033]
[1738002151866,0.17849143,99522.0,99521.0,2.061833]
[1738002152176,0.17849143,99522.0,99521.0,1.8608]
[1738002152568,0.17849143,99522.0,99521.0,1.5]
[1738002153475,0.17849143,99522.0,99521.0,1.501]
[1738002153975,0.17849143,99522.0,99521.0,1.52072429]
[1738002154163,0.17849143,99522.0,99521.0,1.52172429]
[1738002154973,0.00015077,99531.0,99521.0,1.52172429]
[1738002155173,0.00015077,99531.0,99527.0,0.3608]
[1738002155681,0.00015077,99531.0,99528.0,0.201019]
[1738002156179,0.00015077,99531.0,99527.0,0.3608]
[1738002156377,0.00115077,99531.0,99527.0,0.3608]
[1738002157182,0.00215077,99531.0,99527.0,0.3608]
[1738002158071,0.00215077,99531.0,99529.0,0.201016]
[1738002158274,0.00215077,99531.0,99527.0,0.3608]
[1738002158672,0.00215077,99531.0,99522.0,0.1333]
[1738002158874,0.20316477,99531.0,99522.0,0.1333]
[1738002159084,0.201015,99530.0,99522.0,0.1333]
[1738002159386,0.00215077,99531.0,99521.0,0.02072429]
[1738002159387,0.201021,99527.0,99521.0,0.02072429]
[1738002159592,0.201021,99527.0,99508.0,0.328158]
[1738002160175,0.201021,99527.0,99522.0,0.001]
[1738002160570,0.3608,99523.0,99508.0,0.1271]
[1738002160777,0.201041,99517.0,99516.0,0.002]
[1738002162880,0.201041,99517.0,99503.0,0.3608]
[1738002163076,0.201031,99522.0,99505.0,0.201063]
[1738002163278,0.201039,99519.0,99505.0,0.201063]
[1738002163486,0.3608,99523.0,99516.0,0.002]
[1738002164080,0.3608,99523.0,99512.0,0.38352031]
[1738002164287,0.00015077,99531.0,99520.0,0.3608]
[1738002164591,0.200964,99556.0,99530.0,0.3608]
[1738002164782,0.200951,99562.0,99542.0,0.3608]
[1738002165088,0.200953,99561.0,99542.0,0.3608]
[1738002165291,0.3608,99564.0,99542.0,0.3608]
[1738002165478,0.200958,99559.0,99542.0,0.3608]
[1738002165791,0.00015069,99555.0,99542.0,0.3608]
[1738002166374,0.00015069,99555.0,99543.0,1.5]
[1738002166875,0.200988,99544.0,99535.0,0.00015069]
[1738002167083,0.00015069,99555.0,99542.0,0.002]
[1738002167283,0.00015069,99555.0,99547.0,0.3608]
[1738002168388,0.200966,99554.0,99547.0,0.3608]
[1738002168690,0.200968,99553.0,99547.0,0.3608]
[1738002168889,0.00015069,99555.0,99547.0,0.3608]
[1738002170092,0.200968,99554.0,99547.0,0.3608]
[1738002170292,0.00015069,99555.0,99546.0,0.02084637]
[1738002170293,0.36095069,99555.0,99546.0,0.02084637]
[1738002170488,0.200973,99551.0,99536.0,0.3608]
[1738002170691,0.203968,99548.0,99547.0,0.002]
[1738002172895,0.22459,99548.0,99547.0,0.002]
[1738002173081,0.023612,99548.0,99527.0,0.02022265]
[1738002173278,0.201,99538.0,99527.0,0.02022265]
[1738002173487,0.201001,99537.0,99527.0,0.02022265]
[1738002174192,0.201001,99537.0,99520.0,0.4888]
[1738002174488,0.201001,99537.0,99512.0,0.3608]
[1738002174489,0.201027,99524.0,99512.0,0.3608]
[1738002174690,0.201045,99515.0,99512.0,0.3608]
[1738002174879,0.201045,99515.0,99505.0,0.02024134]
[1738002175082,0.201045,99515.0,99503.0,0.1277]
[1738002175494,0.00015069,99519.0,99503.0,0.1277]
[1738002175793,0.00015069,99519.0,99503.0,0.14872983]
[1738002175983,0.201042,99517.0,99503.0,0.14872983]
[1738002176682,0.201046,99515.0,99503.0,0.14872983]
[1738002176886,0.00015069,99519.0,99503.0,0.14872983]
[1738002177399,0.00015069,99519.0,99514.0,0.3608]
[1738002177789,0.00015069,99519.0,99517.0,0.201041]
[1738002178392,0.00015069,99519.0,99514.0,0.3608]
[1738002179195,0.00015069,99519.0,99514.0,0.38111751]
[1738002181100,0.00015069,99519.0,99517.0,0.002]
[1738002181602,0.00015069,99519.0,99514.0,0.38111751]
[1738002181791,0.00015069,99519.0,99514.0,0.38311751]
[1738002181993,0.00015069,99519.0,99515.0,1.5]
[1738002182200,0.00015069,99519.0,99514.0,0.38311751]
[1738002183392,0.00015069,99519.0,99517.0,0.002]
[1738002183589,0.3608,99542.0,99517.0,0.002]
[1738002183890,0.00150775,99547.0,99533.0,0.3608]
[1738002184201,0.00150775,99547.0,99543.0,0.3608]
[1738002184398,0.00150775,99547.0,99545.0,0.200983]
[1738002184604,0.00150775,99547.0,99546.0,0.1279]
[1738002185202,0.00350775,99547.0,99546.0,0.1279]
[1738002186497,0.00350775,99547.0,99544.0,0.1248]
[1738002186498,0.00550775,99547.0,99544.0,0.1248]
[1738002186697,0.00550775,99547.0,99543.0,0.3608]
[1738002186698,0.00350775,99547.0,99543.0,0.3608]
[1738002186904,0.00950775,99547.0,99543.0,0.3608]
[1738002187498,0.00950775,99547.0,99543.0,0.38104511]
[1738002187907,0.00850775,99547.0,99543.0,0.38104511]
[1738002189511,0.00850775,99547.0,99546.0,0.200982]
[1738002190002,0.00850775,99547.0,99546.0,1.700982]
[1738002190903,0.00350775,99547.0,99546.0,2.061782]
[1738002191107,0.00950775,99547.0,99546.0,1.8608]
[1738002191308,0.00950775,99547.0,99546.0,0.3608]
[1738002191501,0.00950775,99547.0,99543.0,0.02024511]
[1738002191808,0.00950775,99547.0,99536.0,0.00015069]
[1738002192003,0.200982,99546.0,99536.0,0.00015069]
[1738002192203,0.200998,99539.0,99536.0,0.00015069]
[1738002192411,0.200999,99538.0,99536.0,0.00015069]
[1738002193299,0.201,99537.0,99536.0,0.00015069]
[1738002194113,0.003,99538.0,99536.0,0.00015069]
[1738002194306,0.2365,99545.0,99536.0,0.00015069]
[1738002194499,0.003,99537.0,99536.0,0.00015069]
[1738002196103,0.003,99537.0,99536.0,0.21749279]
[1738002196302,0.004,99545.0,99536.0,0.21749279]
[1738002196506,0.004,99545.0,99536.0,0.01648979]
[1738002196713,0.200992,99542.0,99536.0,0.00015069]
[1738002196916,0.003,99537.0,99536.0,0.00015069]
[1738002197101,0.003,99537.0,99536.0,0.20115369]
[1738002197305,0.003,99537.0,99536.0,0.00015069]
[1738002197509,0.004,99545.0,99536.0,0.00015069]
[1738002197813,0.004,99545.0,99542.0,0.3608]
[1738002198308,0.003,99545.0,99542.0,0.3608]
[1738002199015,0.003,99545.0,99543.0,0.1167]
[1738002199216,0.005,99545.0,99544.0,0.200987]
[1738002199516,0.005,99545.0,99543.0,0.2259]
[1738002199911,0.002,99545.0,99543.0,0.2259]
[1738002200101,0.002,99545.0,99543.0,0.426888]
[1738002200302,0.002,99545.0,99543.0,0.2259]
[1738002200509,0.008,99545.0,99543.0,0.2259]
[1738002201013,0.007,99545.0,99544.0,0.200987]
[1738002201908,0.007,99545.0,99543.0,0.24230417]
[1738002202214,0.007,99545.0,99543.0,0.13310417]
[1738002202411,0.007,99545.0,99538.0,0.3608]
[1738002203620,0.007,99545.0,99538.0,0.37751368]
[1738002203805,0.008,99545.0,99538.0,0.37751368]
[1738002204306,0.002,99545.0,99538.0,0.37751368]
[1738002204505,0.006,99545.0,99541.0,0.200992]
[1738002204707,0.006,99545.0,99542.0,0.20099]
[1738002204903,0.006,99545.0,99544.0,0.200986]
[1738002205307,0.005,99545.0,99544.0,0.200986]
[1738002205515,0.005,99545.0,99544.0,1.700986]
[1738002205899,0.001,99545.0,99544.0,1.700986]
[1738002206215,0.008,99545.0,99544.0,1.5]
[1738002206715,0.008,99545.0,99544.0,1.700986]
[1738002207514,0.008,99545.0,99544.0,1.5]
[1738002207716,0.008,99545.0,99544.0,1.700986]
[1738002210615,0.00299,99563.0,99554.0,0.200965]
[1738002210814,0.00299,99563.0,99555.0,0.679064]
[1738002211810,0.00299,99563.0,99555.0,0.4781]
[1738002212112,0.00299,99563.0,99562.0,0.20095]
[1738002212516,0.09039009,99580.0,99565.0,0.1667]
[1738002212815,0.01823844,99580.0,99579.0,0.922516]
[1738002213016,0.00299,99593.0,99579.0,0.922516]
[1738002213017,0.00299,99593.0,99592.0,0.20089]
[1738002213317,0.00299,99593.0,99592.0,0.56169]
[1738002213815,0.26766334,99606.0,99604.0,0.200864]
[1738002214021,0.26766334,99606.0,99605.0,0.3608]
[1738002214206,0.26766334,99606.0,99605.0,0.586]
[1738002214410,0.26766334,99606.0,99605.0,0.3608]
[1738002214607,0.26766334,99606.0,99605.0,1.8608]
[1738002214811,0.26766334,99606.0,99605.0,0.3608]
[1738002215215,0.23951189,99615.0,99605.0,0.3608]
[1738002215617,0.003,99606.0,99605.0,0.3608]
[1738002215810,0.011,99606.0,99605.0,0.3618]
[1738002216322,0.003,99606.0,99596.0,0.00015061]
[1738002216523,0.003,99606.0,99605.0,0.001]
[1738002217118,0.01,99606.0,99605.0,0.001]
[1738002217621,0.007,99606.0,99605.0,0.001]
[1738002218518,0.009,99606.0,99605.0,0.001]
[1738002218718,0.3698,99606.0,99596.0,0.00015061]
[1738002218914,0.56168,99597.0,99596.0,0.00015061]
[1738002219322,0.009,99606.0,99596.0,0.00015061]
[1738002219927,0.009,99606.0,99598.0,0.3608]
[1738002220227,0.1127,99607.0,99600.0,0.200873]
[1738002220723,0.1127,99607.0,99598.0,0.3608]
[1738002221124,0.002,99606.0,99598.0,0.3608]
[1738002221518,0.002,99606.0,99604.0,0.200865]
[1738002221719,0.002,99606.0,99598.0,0.922477]
[1738002222022,0.005,99606.0,99598.0,0.7216]
[1738002222227,0.005,99606.0,99600.0,0.200873]
[1738002222433,0.006,99606.0,99600.0,0.200873]
[1738002223129,0.006,99606.0,99605.0,0.200864]
[1738002223424,0.003,99606.0,99605.0,0.200864]
[1738002223726,0.01,99606.0,99600.0,0.135]
[1738002223932,0.01,99606.0,99600.0,0.001]
[1738002225030,0.007,99606.0,99600.0,0.001]
[1738002225228,0.009,99606.0,99600.0,0.001]
[1738002225931,0.01,99606.0,99605.0,0.001]
[1738002226519,0.009,99606.0,99600.0,0.001]
[1738002227024,0.002,99606.0,99598.0,0.3608]
[1738002227223,0.011,99606.0,99605.0,0.001]
[1738002227742,0.01,99606.0,99600.0,0.001]
[1738002228218,0.009,99606.0,99600.0,0.001]
[1738002228418,0.200872,99601.0,99600.0,0.001]
[1738002229533,0.20088,99597.0,99596.0,0.00015061]
[1738002229931,0.002,99601.0,99596.0,0.00015061]
[1738002230138,0.209872,99601.0,99600.0,0.001]
[1738002230631,0.20588,99597.0,99596.0,0.00115061]
[1738002230822,0.20788,99597.0,99596.0,0.00115061]
[1738002231425,0.20588,99597.0,99596.0,0.00115061]
[1738002232217,0.20088,99597.0,99596.0,0.00115061]
[1738002232423,0.3,99597.0,99584.0,0.00150607]
[1738002232623,0.3608,99586.0,99571.0,0.3608]
[1738002232820,0.3608,99578.0,99569.0,0.01536841]
[1738002233025,0.3608,99570.0,99564.0,0.0014]
[1738002233219,0.3608,99570.0,99561.0,0.3608]
[1738002233434,0.200947,99565.0,99561.0,0.3608]
[1738002233737,0.3608,99570.0,99561.0,0.3608]
[1738002234032,0.561736,99570.0,99569.0,0.003]
[1738002234440,0.00015061,99575.0,99569.0,0.003]
[1738002234631,0.00015061,99575.0,99569.0,0.3638]
[1738002235527,0.00015061,99575.0,99569.0,0.3608]
[1738002235926,0.00015061,99575.0,99570.0,0.1097]
[1738002237336,0.00015061,99575.0,99571.0,0.1079]
[1738002239030,0.00015061,99575.0,99571.0,0.1099]
[1738002239537,0.00015061,99575.0,99571.0,0.1109]
[1738002240251,0.200931,99572.0,99571.0,0.003]
[1738002240439,0.00015061,99575.0,99551.0,0.00150673]
[1738002240654,0.200961,99557.0,99551.0,0.00150673]
[1738002240835,0.3608,99563.0,99551.0,0.00150673]
[1738002241144,0.200951,99562.0,99551.0,0.00150673]
[1738002241339,0.200961,99557.0,99551.0,0.00150673]
[1738002241547,0.200961,99557.0,99553.0,0.23892344]
[1738002241841,0.200961,99557.0,99556.0,0.00315061]
[1738002243344,0.200955,99561.0,99556.0,0.00515061]
[1738002243526,0.01550607,99564.0,99556.0,0.00515061]
[1738002243729,0.313946,99565.0,99556.0,0.00515061]
[1738002243929,0.113,99565.0,99556.0,0.00515061]
[1738002244129,0.200937,99569.0,99556.0,0.00515061]
[1738002244329,0.00015061,99575.0,99556.0,0.36595061]
[1738002244739,0.00015061,99575.0,99566.0,0.3608]
[1738002244941,0.00015061,99575.0,99567.0,0.1047]
[1738002245551,0.00015061,99575.0,99567.0,0.2173]
[1738002245731,0.00015061,99575.0,99567.0,0.1047]
[1738002245935,0.00015061,99575.0,99566.0,0.002]
[1738002245936,0.3608,99574.0,99566.0,0.002]
[1738002246137,0.200941,99567.0,99566.0,0.002]
[1738002247547,0.200941,99567.0,99566.0,0.004]
[1738002247847,0.200941,99567.0,99566.0,0.002]
[1738002248235,0.4684,99574.0,99566.0,0.001]
[1738002248441,0.200941,99567.0,99566.0,0.002]
[1738002249831,0.3608,99574.0,99566.0,0.003]
[1738002250037,0.00015061,99575.0,99569.0,0.200936]
[1738002250244,0.00015061,99575.0,99574.0,0.561727]
[1738002250446,0.00015061,99575.0,99574.0,0.3608]
[1738002250945,0.11935648,99590.0,99582.0,0.20091]
[1738002251140,0.11935648,99590.0,99587.0,0.3608]
[1738002251346,0.14911457,99596.0,99589.0,0.3608]
[1738002252635,0.14911457,99596.0,99589.0,0.37519532]
[1738002252837,0.004,99590.0,99589.0,0.3608]
[1738002253039,0.205895,99590.0,99589.0,0.3608]
[1738002253741,0.204895,99590.0,99589.0,0.3608]
[1738002254449,0.200895,99590.0,99589.0,0.3608]
[1738002254748,0.201895,99590.0,99589.0,0.3608]
[1738002254947,0.200905,99585.0,99584.0,0.103]
[1738002255838,0.004,99590.0,99584.0,0.103]
[1738002256039,0.200896,99589.0,99587.0,0.3608]
[1738002256846,0.200906,99584.0,99583.0,0.00015061]
[1738002259347,0.200906,99584.0,99570.0,0.17995247]
[1738002259348,0.200933,99571.0,99570.0,0.17995247]
[1738002259534,0.561733,99571.0,99570.0,0.17995247]
[1738002260650,0.561733,99571.0,99570.0,0.18195247]
[1738002261239,0.57595875,99571.0,99570.0,0.18195247]
[1738002262146,0.57595875,99571.0,99570.0,0.004]
[1738002262545,0.57595875,99571.0,99570.0,0.002]
[1738002263254,0.21515875,99571.0,99570.0,0.001]
[1738002264053,0.200924,99576.0,99566.0,0.3608]
[1738002264353,0.00015061,99580.0,99566.0,0.3608]
[1738002264552,0.00015061,99580.0,99561.0,0.00015061]
[1738002264553,0.14566693,99580.0,99561.0,0.00015061]
[1738002264755,0.200939,99569.0,99565.0,0.3608]
[1738002265455,0.14566693,99580.0,99565.0,0.3608]
[1738002266044,0.00015061,99580.0,99565.0,0.3608]
[1738002266243,0.00015061,99580.0,99566.0,0.002]
[1738002266444,0.200935,99570.0,99566.0,0.002]
[1738002266656,0.200941,99567.0,99566.0,0.002]
[1738002268655,0.200941,99567.0,99565.0,0.002]